Workbook

Sheet Programación del préstamo
C2: Programación de la amortización del préstamo
B4: Indicar valores | G4: Resumen del préstamo
B5: Importe del préstamo | E5: 5000 | G5: Pago programado | I5: =IF(LoanIsGood,-PMT(InterestRate/PaymentsPerYear,NúmeroDePagosProgramados,ImporteDelPréstamo),"") -> 425.749521
B6: Tasa de interés anual | E6: 0.04 | G6: Número de pagos programados | I6: =IF(LoanIsGood,LoanPeriod*PaymentsPerYear,"") -> 12
B7: Periodo del préstamo en años | E7: 1 | G7: Número real de pagos | I7: =NúmeroRealDePagos -> 10
B8: Número de pagos por año | E8: 12 | G8: Importe total de pagos anticipados | I8: =ImporteTotalDePagosAnticipados -> 900
B9: Fecha de inicio del préstamo | E9: =TODAY() -> 2021-05-28 | G9: Importe total de intereses | I9: =ImporteTotalDeIntereses -> 89.62148597
B11: Pagos adicionales opcionales | E11: 100 | G11: Nombre del prestamista | I11: Banco Woodgrove
B13: Número de pago | C13: Pago Fecha | D13: Inicio Saldo | E13: Pago programado | F13: Adicional Pago | G13: Total Pago | H13: Director | I13: Interés | J13: Fin Saldo | K13: Acumulado Interés
B14: =IF(LoanIsGood,IF(ROW()-ROW(PaymentSchedule3[[#Headers],[Número de pago]])>NúmeroDePagosProgramados,"",ROW()-ROW(PaymentSchedule3[[#Headers],[Número de pago]])),"") -> 1 | C14: =IF(PaymentSchedule3[[#This Row],[Número de pago]]<>"",EOMONTH(LoanStartDate,ROW(PaymentSchedule3[[#This Row],[Número de pago]])-ROW(PaymentSchedule3[[#Headers],[Número de pago]])-2)+DAY(LoanStartDate),"") -> 2021-05-28 | D14: =IF(PaymentSchedule3[[#This Row],[Número de pago]]<>"",IF(ROW()-ROW(PaymentSchedule3[[#Headers],[Inicio Saldo]])=1,ImporteDelPréstamo,INDEX(PaymentSchedule3[Fin Saldo],ROW()-ROW(PaymentSchedule3[[#Headers],[Inicio Saldo]])-1)),"") -> 5000 | E14: =IF(PaymentSchedule3[[#This Row],[Número de pago]]<>"",PagoProgramado,"") -> 425.749521 | F14: =IF(PaymentSchedule3[[#This Row],[Número de pago]]<>"",IF(PaymentSchedule3[[#This Row],[Pago programado]]+ExtraPayments<PaymentSchedule3[[#This Row],[Inicio Saldo]],ExtraPayments,IF(PaymentSchedule3[[#This Row],[Inicio Saldo]]-PaymentSchedule3[[#This Row],[Pago programado]]>0,PaymentSchedule3[[#This Row],[Inicio Saldo]]-PaymentSchedule3[[#This Row],[Pago programado]],0)),"") -> 100 | G14: =IF(PaymentSchedule3[[#This Row],[Número de pago]]<>"",IF(PaymentSchedule3[[#This Row],[Pago programado]]+PaymentSchedule3[[#This Row],[Adicional Pago]]<=PaymentSchedule3[[#This Row],[Inicio Saldo]],PaymentSchedule3[[#This Row],[Pago programado]]+PaymentSchedule3[[#This Row],[Adicional Pago]],PaymentSchedule3[[#This Row],[Inicio Saldo]]),"") -> 525.749521 | H14: =IF(PaymentSchedule3[[#This Row],[Número de pago]]<>"",PaymentSchedule3[[#This Row],[Total Pago]]-PaymentSchedule3[[#This Row],[Interés]],"") -> 509.0828543 | I14: =IF(PaymentSchedule3[[#This Row],[Número de pago]]<>"",PaymentSchedule3[[#This Row],[Inicio Saldo]]*(InterestRate/PaymentsPerYear),"") -> 16.66666667 | J14: =IF(PaymentSchedule3[[#This Row],[Número de pago]]<>"",IF(PaymentSchedule3[[#This Row],[Pago programado]]+PaymentSchedule3[[#This Row],[Adicional Pago]]<=PaymentSchedule3[[#This Row],[Inicio Saldo]],PaymentSchedule3[[#This Row],[Inicio Saldo]]-PaymentSchedule3[[#This Row],[Director]],0),"") -> 4490.917146 | K14: =IF(PaymentSchedule3[[#This Row],[Número de pago]]<>"",SUM(INDEX(PaymentSchedule3[Interés],1,1):PaymentSchedule3[[#This Row],[Interés]]),"") -> 16.66666667
B15: =IF(LoanIsGood,IF(ROW()-ROW(PaymentSchedule3[[#Headers],[Número de pago]])>NúmeroDePagosProgramados,"",ROW()-ROW(PaymentSchedule3[[#Headers],[Número de pago]])),"") -> 2 | C15: =IF(PaymentSchedule3[[#This Row],[Número de pago]]<>"",EOMONTH(LoanStartDate,ROW(PaymentSchedule3[[#This Row],[Número de pago]])-ROW(PaymentSchedule3[[#Headers],[Número de pago]])-2)+DAY(LoanStartDate),"") -> 2021-06-28 | D15: =IF(PaymentSchedule3[[#This Row],[Número de pago]]<>"",IF(ROW()-ROW(PaymentSchedule3[[#Headers],[Inicio Saldo]])=1,ImporteDelPréstamo,INDEX(PaymentSchedule3[Fin Saldo],ROW()-ROW(PaymentSchedule3[[#Headers],[Inicio Saldo]])-1)),"") -> 4490.917146 | E15: =IF(PaymentSchedule3[[#This Row],[Número de pago]]<>"",PagoProgramado,"") -> 425.749521 | F15: =IF(PaymentSchedule3[[#This Row],[Número de pago]]<>"",IF(PaymentSchedule3[[#This Row],[Pago programado]]+ExtraPayments<PaymentSchedule3[[#This Row],[Inicio Saldo]],ExtraPayments,IF(PaymentSchedule3[[#This Row],[Inicio Saldo]]-PaymentSchedule3[[#This Row],[Pago programado]]>0,PaymentSchedule3[[#This Row],[Inicio Saldo]]-PaymentSchedule3[[#This Row],[Pago programado]],0)),"") -> 100 | G15: =IF(PaymentSchedule3[[#This Row],[Número de pago]]<>"",IF(PaymentSchedule3[[#This Row],[Pago programado]]+PaymentSchedule3[[#This Row],[Adicional Pago]]<=PaymentSchedule3[[#This Row],[Inicio Saldo]],PaymentSchedule3[[#This Row],[Pago programado]]+PaymentSchedule3[[#This Row],[Adicional Pago]],PaymentSchedule3[[#This Row],[Inicio Saldo]]),"") -> 525.749521 | H15: =IF(PaymentSchedule3[[#This Row],[Número de pago]]<>"",PaymentSchedule3[[#This Row],[Total Pago]]-PaymentSchedule3[[#This Row],[Interés]],"") -> 510.7797972 | I15: =IF(PaymentSchedule3[[#This Row],[Número de pago]]<>"",PaymentSchedule3[[#This Row],[Inicio Saldo]]*(InterestRate/PaymentsPerYear),"") -> 14.96972382 | J15: =IF(PaymentSchedule3[[#This Row],[Número de pago]]<>"",IF(PaymentSchedule3[[#This Row],[Pago programado]]+PaymentSchedule3[[#This Row],[Adicional Pago]]<=PaymentSchedule3[[#This Row],[Inicio Saldo]],PaymentSchedule3[[#This Row],[Inicio Saldo]]-PaymentSchedule3[[#This Row],[Director]],0),"") -> 3980.137349 | K15: =IF(PaymentSchedule3[[#This Row],[Número de pago]]<>"",SUM(INDEX(PaymentSchedule3[Interés],1,1):PaymentSchedule3[[#This Row],[Interés]]),"") -> 31.63639049
B16: =IF(LoanIsGood,IF(ROW()-ROW(PaymentSchedule3[[#Headers],[Número de pago]])>NúmeroDePagosProgramados,"",ROW()-ROW(PaymentSchedule3[[#Headers],[Número de pago]])),"") -> 3 | C16: =IF(PaymentSchedule3[[#This Row],[Número de pago]]<>"",EOMONTH(LoanStartDate,ROW(PaymentSchedule3[[#This Row],[Número de pago]])-ROW(PaymentSchedule3[[#Headers],[Número de pago]])-2)+DAY(LoanStartDate),"") -> 2021-07-28 | D16: =IF(PaymentSchedule3[[#This Row],[Número de pago]]<>"",IF(ROW()-ROW(PaymentSchedule3[[#Headers],[Inicio Saldo]])=1,ImporteDelPréstamo,INDEX(PaymentSchedule3[Fin Saldo],ROW()-ROW(PaymentSchedule3[[#Headers],[Inicio Saldo]])-1)),"") -> 3980.137349 | E16: =IF(PaymentSchedule3[[#This Row],[Número de pago]]<>"",PagoProgramado,"") -> 425.749521 | F16: =IF(PaymentSchedule3[[#This Row],[Número de pago]]<>"",IF(PaymentSchedule3[[#This Row],[Pago programado]]+ExtraPayments<PaymentSchedule3[[#This Row],[Inicio Saldo]],ExtraPayments,IF(PaymentSchedule3[[#This Row],[Inicio Saldo]]-PaymentSchedule3[[#This Row],[Pago programado]]>0,PaymentSchedule3[[#This Row],[Inicio Saldo]]-PaymentSchedule3[[#This Row],[Pago programado]],0)),"") -> 100 | G16: =IF(PaymentSchedule3[[#This Row],[Número de pago]]<>"",IF(PaymentSchedule3[[#This Row],[Pago programado]]+PaymentSchedule3[[#This Row],[Adicional Pago]]<=PaymentSchedule3[[#This Row],[Inicio Saldo]],PaymentSchedule3[[#This Row],[Pago programado]]+PaymentSchedule3[[#This Row],[Adicional Pago]],PaymentSchedule3[[#This Row],[Inicio Saldo]]),"") -> 525.749521 | H16: =IF(PaymentSchedule3[[#This Row],[Número de pago]]<>"",PaymentSchedule3[[#This Row],[Total Pago]]-PaymentSchedule3[[#This Row],[Interés]],"") -> 512.4823965 | I16: =IF(PaymentSchedule3[[#This Row],[Número de pago]]<>"",PaymentSchedule3[[#This Row],[Inicio Saldo]]*(InterestRate/PaymentsPerYear),"") -> 13.2671245 | J16: =IF(PaymentSchedule3[[#This Row],[Número de pago]]<>"",IF(PaymentSchedule3[[#This Row],[Pago programado]]+PaymentSchedule3[[#This Row],[Adicional Pago]]<=PaymentSchedule3[[#This Row],[Inicio Saldo]],PaymentSchedule3[[#This Row],[Inicio Saldo]]-PaymentSchedule3[[#This Row],[Director]],0),"") -> 3467.654952 | K16: =IF(PaymentSchedule3[[#This Row],[Número de pago]]<>"",SUM(INDEX(PaymentSchedule3[Interés],1,1):PaymentSchedule3[[#This Row],[Interés]]),"") -> 44.90351498
B17: =IF(LoanIsGood,IF(ROW()-ROW(PaymentSchedule3[[#Headers],[Número de pago]])>NúmeroDePagosProgramados,"",ROW()-ROW(PaymentSchedule3[[#Headers],[Número de pago]])),"") -> 4 | C17: =IF(PaymentSchedule3[[#This Row],[Número de pago]]<>"",EOMONTH(LoanStartDate,ROW(PaymentSchedule3[[#This Row],[Número de pago]])-ROW(PaymentSchedule3[[#Headers],[Número de pago]])-2)+DAY(LoanStartDate),"") -> 2021-08-28 | D17: =IF(PaymentSchedule3[[#This Row],[Número de pago]]<>"",IF(ROW()-ROW(PaymentSchedule3[[#Headers],[Inicio Saldo]])=1,ImporteDelPréstamo,INDEX(PaymentSchedule3[Fin Saldo],ROW()-ROW(PaymentSchedule3[[#Headers],[Inicio Saldo]])-1)),"") -> 3467.654952 | E17: =IF(PaymentSchedule3[[#This Row],[Número de pago]]<>"",PagoProgramado,"") -> 425.749521 | F17: =IF(PaymentSchedule3[[#This Row],[Número de pago]]<>"",IF(PaymentSchedule3[[#This Row],[Pago programado]]+ExtraPayments<PaymentSchedule3[[#This Row],[Inicio Saldo]],ExtraPayments,IF(PaymentSchedule3[[#This Row],[Inicio Saldo]]-PaymentSchedule3[[#This Row],[Pago programado]]>0,PaymentSchedule3[[#This Row],[Inicio Saldo]]-PaymentSchedule3[[#This Row],[Pago programado]],0)),"") -> 100 | G17: =IF(PaymentSchedule3[[#This Row],[Número de pago]]<>"",IF(PaymentSchedule3[[#This Row],[Pago programado]]+PaymentSchedule3[[#This Row],[Adicional Pago]]<=PaymentSchedule3[[#This Row],[Inicio Saldo]],PaymentSchedule3[[#This Row],[Pago programado]]+PaymentSchedule3[[#This Row],[Adicional Pago]],PaymentSchedule3[[#This Row],[Inicio Saldo]]),"") -> 525.749521 | H17: =IF(PaymentSchedule3[[#This Row],[Número de pago]]<>"",PaymentSchedule3[[#This Row],[Total Pago]]-PaymentSchedule3[[#This Row],[Interés]],"") -> 514.1906711 | I17: =IF(PaymentSchedule3[[#This Row],[Número de pago]]<>"",PaymentSchedule3[[#This Row],[Inicio Saldo]]*(InterestRate/PaymentsPerYear),"") -> 11.55884984 | J17: =IF(PaymentSchedule3[[#This Row],[Número de pago]]<>"",IF(PaymentSchedule3[[#This Row],[Pago programado]]+PaymentSchedule3[[#This Row],[Adicional Pago]]<=PaymentSchedule3[[#This Row],[Inicio Saldo]],PaymentSchedule3[[#This Row],[Inicio Saldo]]-PaymentSchedule3[[#This Row],[Director]],0),"") -> 2953.464281 | K17: =IF(PaymentSchedule3[[#This Row],[Número de pago]]<>"",SUM(INDEX(PaymentSchedule3[Interés],1,1):PaymentSchedule3[[#This Row],[Interés]]),"") -> 56.46236482
B18: =IF(LoanIsGood,IF(ROW()-ROW(PaymentSchedule3[[#Headers],[Número de pago]])>NúmeroDePagosProgramados,"",ROW()-ROW(PaymentSchedule3[[#Headers],[Número de pago]])),"") -> 5 | C18: =IF(PaymentSchedule3[[#This Row],[Número de pago]]<>"",EOMONTH(LoanStartDate,ROW(PaymentSchedule3[[#This Row],[Número de pago]])-ROW(PaymentSchedule3[[#Headers],[Número de pago]])-2)+DAY(LoanStartDate),"") -> 2021-09-28 | D18: =IF(PaymentSchedule3[[#This Row],[Número de pago]]<>"",IF(ROW()-ROW(PaymentSchedule3[[#Headers],[Inicio Saldo]])=1,ImporteDelPréstamo,INDEX(PaymentSchedule3[Fin Saldo],ROW()-ROW(PaymentSchedule3[[#Headers],[Inicio Saldo]])-1)),"") -> 2953.464281 | E18: =IF(PaymentSchedule3[[#This Row],[Número de pago]]<>"",PagoProgramado,"") -> 425.749521 | F18: =IF(PaymentSchedule3[[#This Row],[Número de pago]]<>"",IF(PaymentSchedule3[[#This Row],[Pago programado]]+ExtraPayments<PaymentSchedule3[[#This Row],[Inicio Saldo]],ExtraPayments,IF(PaymentSchedule3[[#This Row],[Inicio Saldo]]-PaymentSchedule3[[#This Row],[Pago programado]]>0,PaymentSchedule3[[#This Row],[Inicio Saldo]]-PaymentSchedule3[[#This Row],[Pago programado]],0)),"") -> 100 | G18: =IF(PaymentSchedule3[[#This Row],[Número de pago]]<>"",IF(PaymentSchedule3[[#This Row],[Pago programado]]+PaymentSchedule3[[#This Row],[Adicional Pago]]<=PaymentSchedule3[[#This Row],[Inicio Saldo]],PaymentSchedule3[[#This Row],[Pago programado]]+PaymentSchedule3[[#This Row],[Adicional Pago]],PaymentSchedule3[[#This Row],[Inicio Saldo]]),"") -> 525.749521 | H18: =IF(PaymentSchedule3[[#This Row],[Número de pago]]<>"",PaymentSchedule3[[#This Row],[Total Pago]]-PaymentSchedule3[[#This Row],[Interés]],"") -> 515.90464 | I18: =IF(PaymentSchedule3[[#This Row],[Número de pago]]<>"",PaymentSchedule3[[#This Row],[Inicio Saldo]]*(InterestRate/PaymentsPerYear),"") -> 9.844880936 | J18: =IF(PaymentSchedule3[[#This Row],[Número de pago]]<>"",IF(PaymentSchedule3[[#This Row],[Pago programado]]+PaymentSchedule3[[#This Row],[Adicional Pago]]<=PaymentSchedule3[[#This Row],[Inicio Saldo]],PaymentSchedule3[[#This Row],[Inicio Saldo]]-PaymentSchedule3[[#This Row],[Director]],0),"") -> 2437.559641 | K18: =IF(PaymentSchedule3[[#This Row],[Número de pago]]<>"",SUM(INDEX(PaymentSchedule3[Interés],1,1):PaymentSchedule3[[#This Row],[Interés]]),"") -> 66.30724576
B19: =IF(LoanIsGood,IF(ROW()-ROW(PaymentSchedule3[[#Headers],[Número de pago]])>NúmeroDePagosProgramados,"",ROW()-ROW(PaymentSchedule3[[#Headers],[Número de pago]])),"") -> 6 | C19: =IF(PaymentSchedule3[[#This Row],[Número de pago]]<>"",EOMONTH(LoanStartDate,ROW(PaymentSchedule3[[#This Row],[Número de pago]])-ROW(PaymentSchedule3[[#Headers],[Número de pago]])-2)+DAY(LoanStartDate),"") -> 2021-10-28 | D19: =IF(PaymentSchedule3[[#This Row],[Número de pago]]<>"",IF(ROW()-ROW(PaymentSchedule3[[#Headers],[Inicio Saldo]])=1,ImporteDelPréstamo,INDEX(PaymentSchedule3[Fin Saldo],ROW()-ROW(PaymentSchedule3[[#Headers],[Inicio Saldo]])-1)),"") -> 2437.559641 | E19: =IF(PaymentSchedule3[[#This Row],[Número de pago]]<>"",PagoProgramado,"") -> 425.749521 | F19: =IF(PaymentSchedule3[[#This Row],[Número de pago]]<>"",IF(PaymentSchedule3[[#This Row],[Pago programado]]+ExtraPayments<PaymentSchedule3[[#This Row],[Inicio Saldo]],ExtraPayments,IF(PaymentSchedule3[[#This Row],[Inicio Saldo]]-PaymentSchedule3[[#This Row],[Pago programado]]>0,PaymentSchedule3[[#This Row],[Inicio Saldo]]-PaymentSchedule3[[#This Row],[Pago programado]],0)),"") -> 100 | G19: =IF(PaymentSchedule3[[#This Row],[Número de pago]]<>"",IF(PaymentSchedule3[[#This Row],[Pago programado]]+PaymentSchedule3[[#This Row],[Adicional Pago]]<=PaymentSchedule3[[#This Row],[Inicio Saldo]],PaymentSchedule3[[#This Row],[Pago programado]]+PaymentSchedule3[[#This Row],[Adicional Pago]],PaymentSchedule3[[#This Row],[Inicio Saldo]]),"") -> 525.749521 | H19: =IF(PaymentSchedule3[[#This Row],[Número de pago]]<>"",PaymentSchedule3[[#This Row],[Total Pago]]-PaymentSchedule3[[#This Row],[Interés]],"") -> 517.6243222 | I19: =IF(PaymentSchedule3[[#This Row],[Número de pago]]<>"",PaymentSchedule3[[#This Row],[Inicio Saldo]]*(InterestRate/PaymentsPerYear),"") -> 8.125198803 | J19: =IF(PaymentSchedule3[[#This Row],[Número de pago]]<>"",IF(PaymentSchedule3[[#This Row],[Pago programado]]+PaymentSchedule3[[#This Row],[Adicional Pago]]<=PaymentSchedule3[[#This Row],[Inicio Saldo]],PaymentSchedule3[[#This Row],[Inicio Saldo]]-PaymentSchedule3[[#This Row],[Director]],0),"") -> 1919.935319 | K19: =IF(PaymentSchedule3[[#This Row],[Número de pago]]<>"",SUM(INDEX(PaymentSchedule3[Interés],1,1):PaymentSchedule3[[#This Row],[Interés]]),"") -> 74.43244456
B20: =IF(LoanIsGood,IF(ROW()-ROW(PaymentSchedule3[[#Headers],[Número de pago]])>NúmeroDePagosProgramados,"",ROW()-ROW(PaymentSchedule3[[#Headers],[Número de pago]])),"") -> 7 | C20: =IF(PaymentSchedule3[[#This Row],[Número de pago]]<>"",EOMONTH(LoanStartDate,ROW(PaymentSchedule3[[#This Row],[Número de pago]])-ROW(PaymentSchedule3[[#Headers],[Número de pago]])-2)+DAY(LoanStartDate),"") -> 2021-11-28 | D20: =IF(PaymentSchedule3[[#This Row],[Número de pago]]<>"",IF(ROW()-ROW(PaymentSchedule3[[#Headers],[Inicio Saldo]])=1,ImporteDelPréstamo,INDEX(PaymentSchedule3[Fin Saldo],ROW()-ROW(PaymentSchedule3[[#Headers],[Inicio Saldo]])-1)),"") -> 1919.935319 | E20: =IF(PaymentSchedule3[[#This Row],[Número de pago]]<>"",PagoProgramado,"") -> 425.749521 | F20: =IF(PaymentSchedule3[[#This Row],[Número de pago]]<>"",IF(PaymentSchedule3[[#This Row],[Pago programado]]+ExtraPayments<PaymentSchedule3[[#This Row],[Inicio Saldo]],ExtraPayments,IF(PaymentSchedule3[[#This Row],[Inicio Saldo]]-PaymentSchedule3[[#This Row],[Pago programado]]>0,PaymentSchedule3[[#This Row],[Inicio Saldo]]-PaymentSchedule3[[#This Row],[Pago programado]],0)),"") -> 100 | G20: =IF(PaymentSchedule3[[#This Row],[Número de pago]]<>"",IF(PaymentSchedule3[[#This Row],[Pago programado]]+PaymentSchedule3[[#This Row],[Adicional Pago]]<=PaymentSchedule3[[#This Row],[Inicio Saldo]],PaymentSchedule3[[#This Row],[Pago programado]]+PaymentSchedule3[[#This Row],[Adicional Pago]],PaymentSchedule3[[#This Row],[Inicio Saldo]]),"") -> 525.749521 | H20: =IF(PaymentSchedule3[[#This Row],[Número de pago]]<>"",PaymentSchedule3[[#This Row],[Total Pago]]-PaymentSchedule3[[#This Row],[Interés]],"") -> 519.3497366 | I20: =IF(PaymentSchedule3[[#This Row],[Número de pago]]<>"",PaymentSchedule3[[#This Row],[Inicio Saldo]]*(InterestRate/PaymentsPerYear),"") -> 6.399784396 | J20: =IF(PaymentSchedule3[[#This Row],[Número de pago]]<>"",IF(PaymentSchedule3[[#This Row],[Pago programado]]+PaymentSchedule3[[#This Row],[Adicional Pago]]<=PaymentSchedule3[[#This Row],[Inicio Saldo]],PaymentSchedule3[[#This Row],[Inicio Saldo]]-PaymentSchedule3[[#This Row],[Director]],0),"") -> 1400.585582 | K20: =IF(PaymentSchedule3[[#This Row],[Número de pago]]<>"",SUM(INDEX(PaymentSchedule3[Interés],1,1):PaymentSchedule3[[#This Row],[Interés]]),"") -> 80.83222896
B21: =IF(LoanIsGood,IF(ROW()-ROW(PaymentSchedule3[[#Headers],[Número de pago]])>NúmeroDePagosProgramados,"",ROW()-ROW(PaymentSchedule3[[#Headers],[Número de pago]])),"") -> 8 | C21: =IF(PaymentSchedule3[[#This Row],[Número de pago]]<>"",EOMONTH(LoanStartDate,ROW(PaymentSchedule3[[#This Row],[Número de pago]])-ROW(PaymentSchedule3[[#Headers],[Número de pago]])-2)+DAY(LoanStartDate),"") -> 2021-12-28 | D21: =IF(PaymentSchedule3[[#This Row],[Número de pago]]<>"",IF(ROW()-ROW(PaymentSchedule3[[#Headers],[Inicio Saldo]])=1,ImporteDelPréstamo,INDEX(PaymentSchedule3[Fin Saldo],ROW()-ROW(PaymentSchedule3[[#Headers],[Inicio Saldo]])-1)),"") -> 1400.585582 | E21: =IF(PaymentSchedule3[[#This Row],[Número de pago]]<>"",PagoProgramado,"") -> 425.749521 | F21: =IF(PaymentSchedule3[[#This Row],[Número de pago]]<>"",IF(PaymentSchedule3[[#This Row],[Pago programado]]+ExtraPayments<PaymentSchedule3[[#This Row],[Inicio Saldo]],ExtraPayments,IF(PaymentSchedule3[[#This Row],[Inicio Saldo]]-PaymentSchedule3[[#This Row],[Pago programado]]>0,PaymentSchedule3[[#This Row],[Inicio Saldo]]-PaymentSchedule3[[#This Row],[Pago programado]],0)),"") -> 100 | G21: =IF(PaymentSchedule3[[#This Row],[Número de pago]]<>"",IF(PaymentSchedule3[[#This Row],[Pago programado]]+PaymentSchedule3[[#This Row],[Adicional Pago]]<=PaymentSchedule3[[#This Row],[Inicio Saldo]],PaymentSchedule3[[#This Row],[Pago programado]]+PaymentSchedule3[[#This Row],[Adicional Pago]],PaymentSchedule3[[#This Row],[Inicio Saldo]]),"") -> 525.749521 | H21: =IF(PaymentSchedule3[[#This Row],[Número de pago]]<>"",PaymentSchedule3[[#This Row],[Total Pago]]-PaymentSchedule3[[#This Row],[Interés]],"") -> 521.0809024 | I21: =IF(PaymentSchedule3[[#This Row],[Número de pago]]<>"",PaymentSchedule3[[#This Row],[Inicio Saldo]]*(InterestRate/PaymentsPerYear),"") -> 4.668618607 | J21: =IF(PaymentSchedule3[[#This Row],[Número de pago]]<>"",IF(PaymentSchedule3[[#This Row],[Pago programado]]+PaymentSchedule3[[#This Row],[Adicional Pago]]<=PaymentSchedule3[[#This Row],[Inicio Saldo]],PaymentSchedule3[[#This Row],[Inicio Saldo]]-PaymentSchedule3[[#This Row],[Director]],0),"") -> 879.5046797 | K21: =IF(PaymentSchedule3[[#This Row],[Número de pago]]<>"",SUM(INDEX(PaymentSchedule3[Interés],1,1):PaymentSchedule3[[#This Row],[Interés]]),"") -> 85.50084756
B22: =IF(LoanIsGood,IF(ROW()-ROW(PaymentSchedule3[[#Headers],[Número de pago]])>NúmeroDePagosProgramados,"",ROW()-ROW(PaymentSchedule3[[#Headers],[Número de pago]])),"") -> 9 | C22: =IF(PaymentSchedule3[[#This Row],[Número de pago]]<>"",EOMONTH(LoanStartDate,ROW(PaymentSchedule3[[#This Row],[Número de pago]])-ROW(PaymentSchedule3[[#Headers],[Número de pago]])-2)+DAY(LoanStartDate),"") -> 2022-01-28 | D22: =IF(PaymentSchedule3[[#This Row],[Número de pago]]<>"",IF(ROW()-ROW(PaymentSchedule3[[#Headers],[Inicio Saldo]])=1,ImporteDelPréstamo,INDEX(PaymentSchedule3[Fin Saldo],ROW()-ROW(PaymentSchedule3[[#Headers],[Inicio Saldo]])-1)),"") -> 879.5046797 | E22: =IF(PaymentSchedule3[[#This Row],[Número de pago]]<>"",PagoProgramado,"") -> 425.749521 | F22: =IF(PaymentSchedule3[[#This Row],[Número de pago]]<>"",IF(PaymentSchedule3[[#This Row],[Pago programado]]+ExtraPayments<PaymentSchedule3[[#This Row],[Inicio Saldo]],ExtraPayments,IF(PaymentSchedule3[[#This Row],[Inicio Saldo]]-PaymentSchedule3[[#This Row],[Pago programado]]>0,PaymentSchedule3[[#This Row],[Inicio Saldo]]-PaymentSchedule3[[#This Row],[Pago programado]],0)),"") -> 100 | G22: =IF(PaymentSchedule3[[#This Row],[Número de pago]]<>"",IF(PaymentSchedule3[[#This Row],[Pago programado]]+PaymentSchedule3[[#This Row],[Adicional Pago]]<=PaymentSchedule3[[#This Row],[Inicio Saldo]],PaymentSchedule3[[#This Row],[Pago programado]]+PaymentSchedule3[[#This Row],[Adicional Pago]],PaymentSchedule3[[#This Row],[Inicio Saldo]]),"") -> 525.749521 | H22: =IF(PaymentSchedule3[[#This Row],[Número de pago]]<>"",PaymentSchedule3[[#This Row],[Total Pago]]-PaymentSchedule3[[#This Row],[Interés]],"") -> 522.8178387 | I22: =IF(PaymentSchedule3[[#This Row],[Número de pago]]<>"",PaymentSchedule3[[#This Row],[Inicio Saldo]]*(InterestRate/PaymentsPerYear),"") -> 2.931682266 | J22: =IF(PaymentSchedule3[[#This Row],[Número de pago]]<>"",IF(PaymentSchedule3[[#This Row],[Pago programado]]+PaymentSchedule3[[#This Row],[Adicional Pago]]<=PaymentSchedule3[[#This Row],[Inicio Saldo]],PaymentSchedule3[[#This Row],[Inicio Saldo]]-PaymentSchedule3[[#This Row],[Director]],0),"") -> 356.686841 | K22: =IF(PaymentSchedule3[[#This Row],[Número de pago]]<>"",SUM(INDEX(PaymentSchedule3[Interés],1,1):PaymentSchedule3[[#This Row],[Interés]]),"") -> 88.43252983
B23: =IF(LoanIsGood,IF(ROW()-ROW(PaymentSchedule3[[#Headers],[Número de pago]])>NúmeroDePagosProgramados,"",ROW()-ROW(PaymentSchedule3[[#Headers],[Número de pago]])),"") -> 10 | C23: =IF(PaymentSchedule3[[#This Row],[Número de pago]]<>"",EOMONTH(LoanStartDate,ROW(PaymentSchedule3[[#This Row],[Número de pago]])-ROW(PaymentSchedule3[[#Headers],[Número de pago]])-2)+DAY(LoanStartDate),"") -> 2022-02-28 | D23: =IF(PaymentSchedule3[[#This Row],[Número de pago]]<>"",IF(ROW()-ROW(PaymentSchedule3[[#Headers],[Inicio Saldo]])=1,ImporteDelPréstamo,INDEX(PaymentSchedule3[Fin Saldo],ROW()-ROW(PaymentSchedule3[[#Headers],[Inicio Saldo]])-1)),"") -> 356.686841 | E23: =IF(PaymentSchedule3[[#This Row],[Número de pago]]<>"",PagoProgramado,"") -> 425.749521 | F23: =IF(PaymentSchedule3[[#This Row],[Número de pago]]<>"",IF(PaymentSchedule3[[#This Row],[Pago programado]]+ExtraPayments<PaymentSchedule3[[#This Row],[Inicio Saldo]],ExtraPayments,IF(PaymentSchedule3[[#This Row],[Inicio Saldo]]-PaymentSchedule3[[#This Row],[Pago programado]]>0,PaymentSchedule3[[#This Row],[Inicio Saldo]]-PaymentSchedule3[[#This Row],[Pago programado]],0)),"") -> 0 | G23: =IF(PaymentSchedule3[[#This Row],[Número de pago]]<>"",IF(PaymentSchedule3[[#This Row],[Pago programado]]+PaymentSchedule3[[#This Row],[Adicional Pago]]<=PaymentSchedule3[[#This Row],[Inicio Saldo]],PaymentSchedule3[[#This Row],[Pago programado]]+PaymentSchedule3[[#This Row],[Adicional Pago]],PaymentSchedule3[[#This Row],[Inicio Saldo]]),"") -> 356.686841 | H23: =IF(PaymentSchedule3[[#This Row],[Número de pago]]<>"",PaymentSchedule3[[#This Row],[Total Pago]]-PaymentSchedule3[[#This Row],[Interés]],"") -> 355.4978849 | I23: =IF(PaymentSchedule3[[#This Row],[Número de pago]]<>"",PaymentSchedule3[[#This Row],[Inicio Saldo]]*(InterestRate/PaymentsPerYear),"") -> 1.188956137 | J23: =IF(PaymentSchedule3[[#This Row],[Número de pago]]<>"",IF(PaymentSchedule3[[#This Row],[Pago programado]]+PaymentSchedule3[[#This Row],[Adicional Pago]]<=PaymentSchedule3[[#This Row],[Inicio Saldo]],PaymentSchedule3[[#This Row],[Inicio Saldo]]-PaymentSchedule3[[#This Row],[Director]],0),"") -> 0 | K23: =IF(PaymentSchedule3[[#This Row],[Número de pago]]<>"",SUM(INDEX(PaymentSchedule3[Interés],1,1):PaymentSchedule3[[#This Row],[Interés]]),"") -> 89.62148597
